Workbook

Sheet Қолма қол ақша қозғалысы есебі
B1: Ақша ағыны Ресми есеп
B3: Қаржылық жылдың басы: | D3: (Алдын ала) Бастау | E3: =UPPER(TEXT(FiscalYearStartDate,"МММ")) -> ҚАҢ | F3: =UPPER(TEXT(EOMONTH(FiscalYearStartDate,1),"МММ")) -> АҚП | G3: =UPPER(TEXT(EOMONTH(FiscalYearStartDate,2),"МММ")) -> НАУ | H3: =UPPER(TEXT(EOMONTH(FiscalYearStartDate,3),"МММ")) -> СӘУ | I3: =UPPER(TEXT(EOMONTH(FiscalYearStartDate,4),"МММ")) -> МАМ | J3: =UPPER(TEXT(EOMONTH(FiscalYearStartDate,5),"МММ")) -> МАУ | K3: =UPPER(TEXT(EOMONTH(FiscalYearStartDate,6),"МММ")) -> ШІЛ | L3: =UPPER(TEXT(EOMONTH(FiscalYearStartDate,7),"МММ")) -> ТАМ | M3: =UPPER(TEXT(EOMONTH(FiscalYearStartDate,8),"МММ")) -> ҚЫР | N3: =UPPER(TEXT(EOMONTH(FiscalYearStartDate,9),"МММ")) -> ҚАЗ | O3: =UPPER(TEXT(EOMONTH(FiscalYearStartDate,10),"МММ")) -> ҚАР | P3: =UPPER(TEXT(EOMONTH(FiscalYearStartDate,11),"МММ")) -> ЖЕЛ | R3: Барлығы
B4: 2012-01-05 | D4: EST | E4: =FiscalYearStartDate -> 2012-01-05 | F4: =EOMONTH(E4,0)+DAY(FiscalYearStartDate) -> 2012-02-05 | G4: =EOMONTH(F4,0)+DAY(FiscalYearStartDate) -> 2012-03-05 | H4: =EOMONTH(G4,0)+DAY(FiscalYearStartDate) -> 2012-04-05 | I4: =EOMONTH(H4,0)+DAY(FiscalYearStartDate) -> 2012-05-05 | J4: =EOMONTH(I4,0)+DAY(FiscalYearStartDate) -> 2012-06-05 | K4: =EOMONTH(J4,0)+DAY(FiscalYearStartDate) -> 2012-07-05 | L4: =EOMONTH(K4,0)+DAY(FiscalYearStartDate) -> 2012-08-05 | M4: =EOMONTH(L4,0)+DAY(FiscalYearStartDate) -> 2012-09-05 | N4: =EOMONTH(M4,0)+DAY(FiscalYearStartDate) -> 2012-10-05 | O4: =EOMONTH(N4,0)+DAY(FiscalYearStartDate) -> 2012-11-05 | P4: =EOMONTH(O4,0)+DAY(FiscalYearStartDate) -> 2012-12-05 | R4: Тауар EST
B6: Қолдағы ақша (айдың басы) | D6: 100 | E6: =D48 -> 100 | F6: =E48 -> -125 | G6: 45 | H6: -1 | I6: 224 | J6: 269 | K6: 269 | L6: 269 | M6: 269 | N6: 269 | O6: 269 | P6: 269 | R6: =P6 -> 269
B8: Қолма қол ақша квитанциялары
B9: Қолма қол ақшаға сату | E9: 125 | F9: 120 | G9: 130 | H9: 100 | R9: =SUM(CashReceipts[[#This Row],[0-мерзім]:[12-мерзім]]) -> 475
B10: Қолма қол ақшаның түсуі бойынша бухгалтердің жиынтықтары | H10: 75 | I10: 45 | R10: =SUM(CashReceipts[[#This Row],[0-мерзім]:[12-мерзім]]) -> 120
B11: Несие/ басқа қолма қол ақша | E11: 50 | F11: 50 | G11: 50 | H11: 50 | R11: =SUM(CashReceipts[[#This Row],[0-мерзім]:[12-мерзім]]) -> 200
B12: Барлығы | D12: =SUBTOTAL(109,CashReceipts[0-мерзім]) -> 0 | E12: =SUBTOTAL(109,CashReceipts[1-мерзім]) -> 175 | F12: =SUBTOTAL(109,CashReceipts[2-мерзім]) -> 170 | G12: =SUBTOTAL(109,CashReceipts[3-мерзім]) -> 180 | H12: =SUBTOTAL(109,CashReceipts[4-мерзім]) -> 225 | I12: =SUBTOTAL(109,CashReceipts[5-мерзім]) -> 45 | J12: =SUBTOTAL(109,CashReceipts[6-мерзім]) -> 0 | K12: =SUBTOTAL(109,CashReceipts[7-мерзім]) -> 0 | L12: =SUBTOTAL(109,CashReceipts[8-мерзім]) -> 0 | M12: =SUBTOTAL(109,CashReceipts[9-мерзім]) -> 0 | N12: =SUBTOTAL(109,CashReceipts[10-мерзім]) -> 0 | O12: =SUBTOTAL(109,CashReceipts[11-мерзім]) -> 0 | P12: =SUBTOTAL(109,CashReceipts[12-мерзім]) -> 0 | R12: =SUBTOTAL(109,CashReceipts[Жалпы]) -> 795
B13: Қол жетімді жалпы қолма қол ақша (қолма қол ақша таусылмайынша) | D13: =D6+SUM(CashReceipts[0-мерзім]) -> 100 | E13: =E6+SUM(CashReceipts[1-мерзім]) -> 275 | F13: =F6+SUM(CashReceipts[2-мерзім]) -> 45 | G13: =G6+SUM(CashReceipts[3-мерзім]) -> 225 | H13: =H6+SUM(CashReceipts[4-мерзім]) -> 224 | I13: =I6+SUM(CashReceipts[5-мерзім]) -> 269 | J13: =J6+SUM(CashReceipts[6-мерзім]) -> 269 | K13: =K6+SUM(CashReceipts[7-мерзім]) -> 269 | L13: =L6+SUM(CashReceipts[8-мерзім]) -> 269 | M13: =M6+SUM(CashReceipts[9-мерзім]) -> 269 | N13: =N6+SUM(CashReceipts[10-мерзім]) -> 269 | O13: =O6+SUM(CashReceipts[11-мерзім]) -> 269 | P13: =P6+SUM(CashReceipts[12-мерзім]) -> 269 | R13: =R6+SUM(CashReceipts[Жалпы]) -> 1064
B15: Төленген қолма қол ақша
B16: Сатып алу (тауарлар) | E16: 400 | G16: 226 | R16: =SUM(CashPaidOut[[#This Row],[0-мерзім]:[12-мерзім]]) -> 626
B17: Сатып алу (көрсету) | R17: =SUM(CashPaidOut[[#This Row],[0-мерзім]:[12-мерзім]]) -> 0
B18: Сатып алу (көрсету) | R18: =SUM(CashPaidOut[[#This Row],[0-мерзім]:[12-мерзім]]) -> 0
B19: Жалпы жалақы (нақты түсіріп алу) | R19: =SUM(CashPaidOut[[#This Row],[0-мерзім]:[12-мерзім]]) -> 0
B20: Жалақы шығындары (салық, т.б.) | R20: =SUM(CashPaidOut[[#This Row],[0-мерзім]:[12-мерзім]]) -> 0
B21: Сыртқы қызметтер | R21: =SUM(CashPaidOut[[#This Row],[0-мерзім]:[12-мерзім]]) -> 0
B22: Тауарлар (кеңсе және жұмыс) | R22: =SUM(CashPaidOut[[#This Row],[0-мерзім]:[12-мерзім]]) -> 0
B23: Жөндеу және техникалық қызмет көрсету | R23: =SUM(CashPaidOut[[#This Row],[0-мерзім]:[12-мерзім]]) -> 0
B24: Жарнамалау | R24: =SUM(CashPaidOut[[#This Row],[0-мерзім]:[12-мерзім]]) -> 0
B25: Көлік, жеткізу және сапар | R25: =SUM(CashPaidOut[[#This Row],[0-мерзім]:[12-мерзім]]) -> 0
B26: Бухгалтерлік есеп және заңды | R26: =SUM(CashPaidOut[[#This Row],[0-мерзім]:[12-мерзім]]) -> 0
B27: Жалдау | R27: =SUM(CashPaidOut[[#This Row],[0-мерзім]:[12-мерзім]]) -> 0
B28: Телефон нөмірі | R28: =SUM(CashPaidOut[[#This Row],[0-мерзім]:[12-мерзім]]) -> 0
B29: Коммуналдық қызметтер төлем ақысы | R29: =SUM(CashPaidOut[[#This Row],[0-мерзім]:[12-мерзім]]) -> 0
B30: Сақтандыру | R30: =SUM(CashPaidOut[[#This Row],[0-мерзім]:[12-мерзім]]) -> 0
B31: Салықтар (жылжымайтын мүлік, т.б.) | R31: =SUM(CashPaidOut[[#This Row],[0-мерзім]:[12-мерзім]]) -> 0
B32: Қызығушылықтар | R32: =SUM(CashPaidOut[[#This Row],[0-мерзім]:[12-мерзім]]) -> 0
B33: Басқа шығындар (көрсету) | R33: =SUM(CashPaidOut[[#This Row],[0-мерзім]:[12-мерзім]]) -> 0
B34: Басқа (көрсету) | R34: =SUM(CashPaidOut[[#This Row],[0-мерзім]:[12-мерзім]]) -> 0
B35: Басқа (көрсету) | R35: =SUM(CashPaidOut[[#This Row],[0-мерзім]:[12-мерзім]]) -> 0
B36: Ұсақ-түйек | R36: =SUM(CashPaidOut[[#This Row],[0-мерзім]:[12-мерзім]]) -> 0
B37: Барлығы | D37: =SUBTOTAL(109,CashPaidOut[0-мерзім]) -> 0 | E37: =SUBTOTAL(109,CashPaidOut[1-мерзім]) -> 400 | F37: =SUBTOTAL(109,CashPaidOut[2-мерзім]) -> 0 | G37: =SUBTOTAL(109,CashPaidOut[3-мерзім]) -> 226 | H37: =SUBTOTAL(109,CashPaidOut[4-мерзім]) -> 0 | I37: =SUBTOTAL(109,CashPaidOut[5-мерзім]) -> 0 | J37: =SUBTOTAL(109,CashPaidOut[6-мерзім]) -> 0 | K37: =SUBTOTAL(109,CashPaidOut[7-мерзім]) -> 0 | L37: =SUBTOTAL(109,CashPaidOut[8-мерзім]) -> 0 | M37: =SUBTOTAL(109,CashPaidOut[9-мерзім]) -> 0 | N37: =SUBTOTAL(109,CashPaidOut[10-мерзім]) -> 0 | O37: =SUBTOTAL(109,CashPaidOut[11-мерзім]) -> 0 | P37: =SUBTOTAL(109,CashPaidOut[12-мерзім]) -> 0 | R37: =SUBTOTAL(109,CashPaidOut[Жалпы]) -> 626
B39: Төленген қолма қол ақша (Non P&L)
B40: Негізгі несие төлемі | R40: =SUM(CashPaidOut2[[#This Row],[0-мерзім]:[12-мерзім]]) -> 0
B41: Бағалы қағазды сатып алу (көрсету) | R41: =SUM(CashPaidOut2[[#This Row],[0-мерзім]:[12-мерзім]]) -> 0
B42: Басқа да бастапқы төлемдер | R42: =SUM(CashPaidOut2[[#This Row],[0-мерзім]:[12-мерзім]]) -> 0
B43: Сақтау және сақтауға беру | R43: =SUM(CashPaidOut2[[#This Row],[0-мерзім]:[12-мерзім]]) -> 0
B44: Иелердің шоттан шығарып алуы | R44: =SUM(CashPaidOut2[[#This Row],[0-мерзім]:[12-мерзім]]) -> 0
B45: Барлығы | D45: =SUBTOTAL(109,CashPaidOut2[0-мерзім]) -> 0 | E45: =SUBTOTAL(109,CashPaidOut2[1-мерзім]) -> 0 | F45: =SUBTOTAL(109,CashPaidOut2[2-мерзім]) -> 0 | G45: =SUBTOTAL(109,CashPaidOut2[3-мерзім]) -> 0 | H45: =SUBTOTAL(109,CashPaidOut2[4-мерзім]) -> 0 | I45: =SUBTOTAL(109,CashPaidOut2[5-мерзім]) -> 0 | J45: =SUBTOTAL(109,CashPaidOut2[6-мерзім]) -> 0 | K45: =SUBTOTAL(109,CashPaidOut2[7-мерзім]) -> 0 | L45: =SUBTOTAL(109,CashPaidOut2[8-мерзім]) -> 0 | M45: =SUBTOTAL(109,CashPaidOut2[9-мерзім]) -> 0 | N45: =SUBTOTAL(109,CashPaidOut2[10-мерзім]) -> 0 | O45: =SUBTOTAL(109,CashPaidOut2[11-мерзім]) -> 0 | P45: =SUBTOTAL(109,CashPaidOut2[12-мерзім]) -> 0 | R45: =SUBTOTAL(109,CashPaidOut2[Жалпы]) -> 0
B46: Жалпы төленген қолма қол ақша | D46: =SUM(CashPaidOut[0-мерзім],CashPaidOut2[0-мерзім]) -> 0 | E46: =SUM(CashPaidOut[1-мерзім],CashPaidOut2[1-мерзім]) -> 400 | F46: =SUM(CashPaidOut[2-мерзім],CashPaidOut2[2-мерзім]) -> 0 | G46: =SUM(CashPaidOut[3-мерзім],CashPaidOut2[3-мерзім]) -> 226 | H46: =SUM(CashPaidOut[4-мерзім],CashPaidOut2[4-мерзім]) -> 0 | I46: =SUM(CashPaidOut[5-мерзім],CashPaidOut2[5-мерзім]) -> 0 | J46: =SUM(CashPaidOut[6-мерзім],CashPaidOut2[6-мерзім]) -> 0 | K46: =SUM(CashPaidOut[7-мерзім],CashPaidOut2[7-мерзім]) -> 0 | L46: =SUM(CashPaidOut[8-мерзім],CashPaidOut2[8-мерзім]) -> 0 | M46: =SUM(CashPaidOut[9-мерзім],CashPaidOut2[9-мерзім]) -> 0 | N46: =SUM(CashPaidOut[10-мерзім],CashPaidOut2[10-мерзім]) -> 0 | O46: =SUM(CashPaidOut[11-мерзім],CashPaidOut2[11-мерзім]) -> 0 | P46: =SUM(CashPaidOut[12-мерзім],CashPaidOut2[12-мерзім]) -> 0 | R46: =SUM(CashPaidOut[Жалпы],CashPaidOut2[Жалпы]) -> 626
B48: Қолма қол ақшаның қалғаны (айдың соңы) | D48: =D13-D46 -> 100 | E48: -125 | F48: 45 | G48: -1 | H48: 224 | I48: 269 | J48: 269 | K48: 269 | L48: 269 | M48: 269 | N48: 269 | O48: 269 | P48: 269 | R48: =R13-R46 -> 438
